fUSD/lending_fUSD_20250128
["ID","MTS","AMOUNT","RATE_DAILY","PERIOD"]
[350715657,1738078250462,-500.0,0.00019178,2]
[350715659,1738078250474,-3149.0,0.00019178,2]
[350715661,1738078250484,-3149.0,0.00019178,2]
[350715664,1738078250498,-3149.0,0.00019178,2]
[350715666,1738078250509,-3149.0,0.00019178,2]
[350715668,1738078250519,-3149.0,0.00019178,2]
[350715670,1738078250529,-3149.0,0.00019178,2]
[350715671,1738078250539,-3149.0,0.00019178,2]
[350715673,1738078250549,-2553.16,0.00019178,2]
[350715674,1738078250559,-3149.0,0.00019178,2]
[350715675,1738078250569,-3149.0,0.00019178,2]
[350715676,1738078250578,-2553.16,0.00019178,2]
[350715677,1738078250588,-2553.16,0.00019178,2]
[350715678,1738078250597,-3149.0,0.00019178,2]
[350715679,1738078250607,-500.0,0.00019178,2]
[350715680,1738078250616,-2553.16,0.00019178,2]
[350715681,1738078250625,-2553.16,0.00019178,2]
[350715682,1738078250635,-500.0,0.00019178,2]
[350715683,1738078250645,-2553.16,0.00019178,2]
[350715684,1738078250655,-2553.16,0.00019178,2]
[350715685,1738078250664,-2553.16,0.00019178,2]
[350715686,1738078250676,-2553.16,0.00019178,2]
[350715687,1738078250685,-2553.16,0.00019178,2]
[350715688,1738078250694,-585.9,0.00019178,2]
[350715689,1738078250704,-500.0,0.00019178,2]
[350715690,1738078250714,-500.0,0.00019178,2]
[350715691,1738078250723,-500.0,0.00019178,2]
[350715692,1738078250733,-456.43540206,0.00019178,2]
[350715693,1738078250743,-500.0,0.00019178,2]
[350715694,1738078250754,-500.0,0.00019178,2]
[350715695,1738078250763,-500.0,0.00019178,2]
[350715696,1738078250772,-500.0,0.00019178,2]
[350715697,1738078250782,-500.0,0.00019178,2]
[350715698,1738078250791,-500.0,0.00019178,2]
[350715699,1738078250802,-500.0,0.00019178,2]
[350715700,1738078250810,-1824.09,0.00019178,2]
[350715701,1738078250820,-1824.09,0.00019178,2]
[350715702,1738078250830,-1824.09,0.00019178,2]
[350715703,1738078250840,-1824.09,0.00019178,2]
[350715704,1738078250850,-1824.09,0.00019178,2]
[350715705,1738078250860,-1824.09,0.00019178,2]
[350715706,1738078250870,-1824.09,0.00019178,2]
[350715707,1738078250879,-1824.09,0.00019178,2]
[350715708,1738078250889,-1824.09,0.00019178,2]
[350715709,1738078250899,-1824.09,0.00019178,2]
[350715710,1738078250909,-500.0,0.00019178,2]
[350715711,1738078250918,-235.77755539,0.00019178,2]
[350715712,1738078250929,-500.0,0.00019178,2]
[350715713,1738078250938,-572.89,0.00019178,2]
[350715714,1738078250948,-1116.2,0.00019178,2]
[350715715,1738078250957,-572.89,0.00019178,2]
[350715716,1738078250967,-1116.2,0.00019178,2]
[350715717,1738078250977,-572.89,0.00019178,2]
[350715718,1738078250987,-1116.2,0.00019178,2]
[350715719,1738078250996,-572.89,0.00019178,2]
[350715720,1738078251005,-1116.2,0.00019178,2]
[350715721,1738078251015,-572.89,0.00019178,2]
[350715722,1738078251025,-1116.2,0.00019178,2]
[350715723,1738078251034,-572.89,0.00019178,2]
[350715724,1738078251044,-1116.2,0.00019178,2]
[350715725,1738078251054,-572.89,0.00019178,2]
[350715726,1738078251064,-500.0,0.00019178,2]
[350715727,1738078251073,-1116.2,0.00019178,2]
[350715728,1738078251083,-572.89,0.00019178,2]
[350715729,1738078251092,-1116.2,0.00019178,2]
[350715730,1738078251102,-1116.2,0.00019178,2]
[350715731,1738078251111,-572.89,0.00019178,2]
[350715732,1738078251121,-1116.2,0.00019178,2]
[350715733,1738078251131,-572.89,0.00019178,2]
[350715734,1738078251141,-500.0,0.00019178,2]
[350715735,1738078251151,-500.0,0.00019178,2]
[350715736,1738078251160,-180.05,0.00019178,2]
[350715737,1738078251170,-500.0,0.00019178,2]
[350715738,1738078251181,-500.0,0.00019178,2]
[350715739,1738078251190,-3711.89,0.00019178,2]
[350715740,1738078251199,-3711.89,0.00019178,2]
[350715741,1738078251209,-3711.89,0.00019178,2]
[350715742,1738078251218,-3711.89,0.00019178,2]
[350715743,1738078251227,-3711.89,0.00019178,2]
[350715744,1738078251236,-500.0,0.00019178,2]
[350715745,1738078251246,-3711.89,0.00019178,2]
[350715746,1738078251255,-500.0,0.00019178,2]
[350715747,1738078251264,-3711.89,0.00019178,2]
[350715748,1738078251274,-500.0,0.00019178,2]
[350715749,1738078251283,-3711.89,0.00019178,2]
[350715750,1738078251292,-500.0,0.00019178,2]
[350715751,1738078251302,-3711.89,0.00019178,2]
[350715752,1738078251311,-500.0,0.00019178,2]
[350715753,1738078251320,-500.0,0.00019178,2]
[350715754,1738078251330,-3711.89,0.00019178,2]
[350715755,1738078251339,-500.0,0.00019178,2]
[350715756,1738078251348,-500.0,0.00019178,2]
[350715757,1738078251358,-500.0,0.00019178,2]
[350715758,1738078251371,-500.0,0.00019178,2]
[350715759,1738078251380,-500.0,0.00019178,2]
[350715760,1738078251390,-264.13,0.00019178,2]
[350715761,1738078251399,-500.0,0.00019178,2]
[350715762,1738078251410,-500.0,0.00019178,2]
[350715763,1738078251419,-500.0,0.00019178,2]
[350715764,1738078251429,-349.19,0.00019178,2]
[350715765,1738078251439,-1260.79,0.00019178,2]
[350715766,1738078251448,-1260.79,0.00019178,2]
[350715767,1738078251458,-1260.79,0.00019178,2]
[350715768,1738078251467,-1260.79,0.00019178,2]
[350715769,1738078251476,-1260.79,0.00019178,2]
[350715770,1738078251485,-1260.79,0.00019178,2]
[350715771,1738078251494,-999.85,0.00019178,2]
[350715772,1738078251503,-999.85,0.00019178,2]
[350715773,1738078251513,-999.85,0.00019178,2]
[350715774,1738078251522,-1260.79,0.00019178,2]
[350715775,1738078251531,-1260.79,0.00019178,2]
[350715776,1738078251540,-999.85,0.00019178,2]
[350715777,1738078251550,-500.0,0.00019178,2]
[350715778,1738078251559,-507.55022076,0.00019178,2]
[350715779,1738078251570,-1260.79,0.00019178,2]
[350715780,1738078251579,-999.85,0.00019178,2]
[350715781,1738078251589,-500.0,0.00019178,2]
[350715782,1738078251598,-1260.79,0.00019178,2]
[350715783,1738078251607,-999.85,0.00019178,2]
[350715784,1738078251617,-500.0,0.00019178,2]
[350715785,1738078251626,-999.85,0.00019178,2]
[350715786,1738078251636,-500.0,0.00019178,2]
[350715787,1738078251646,-412.10525262,0.00019178,2]
[350715788,1738078251657,-999.85,0.00019178,2]
[350715789,1738078251668,-500.0,0.00019178,2]
[350715790,1738078251680,-999.85,0.00019178,2]
[350715791,1738078251691,-500.0,0.00019178,2]
[350715792,1738078251700,-999.85,0.00019178,2]
[350715793,1738078251710,-500.0,0.00019178,2]
[350715794,1738078251720,-500.0,0.00019178,2]
[350715795,1738078251730,-231.674418,0.00019178,2]
[350715796,1738078251740,-500.0,0.00019178,2]
[350715797,1738078251750,-500.0,0.00019178,2]
[350715798,1738078251760,-500.0,0.00019178,2]
[350715799,1738078251770,-500.0,0.00019178,2]
[350715800,1738078251780,-500.0,0.00019178,2]
[350715801,1738078251790,-500.0,0.00019178,2]
[350715802,1738078251801,-500.0,0.00019178,2]
[350715803,1738078251811,-500.0,0.00019178,2]
[350715804,1738078251821,-500.0,0.00019178,2]
[350715805,1738078251831,-500.0,0.00019178,2]
[350715806,1738078251841,-216.922782,0.00019178,2]
[350715807,1738078251850,-500.0,0.00019178,2]
[350715808,1738078251860,-500.0,0.00019178,2]
[350715809,1738078251870,-216.922782,0.00019178,2]
[350715810,1738078251880,-500.0,0.00019178,2]
[350715811,1738078251890,-500.0,0.00019178,2]
[350715812,1738078251900,-325.30304119,0.00019178,2]
[350715813,1738078251910,-758.76,0.00019178,2]
[350715814,1738078251919,-500.0,0.00019178,2]
[350715815,1738078251932,-758.76,0.00019178,2]
[350715816,1738078251941,-500.0,0.00019178,2]
[350715817,1738078251951,-758.76,0.00019178,2]
[350715818,1738078251962,-500.0,0.00019178,2]
[350715819,1738078251972,-758.76,0.00019178,2]
[350715820,1738078251982,-500.0,0.00019178,2]
[350715821,1738078251992,-758.76,0.00019178,2]
[350715822,1738078252001,-500.0,0.00019178,2]
[350715823,1738078252011,-758.76,0.00019178,2]
[350715824,1738078252021,-758.76,0.00019178,2]
[350715825,1738078252030,-758.76,0.00019178,2]
[350715826,1738078252040,-758.76,0.00019178,2]
[350715827,1738078252049,-758.76,0.00019178,2]
[350715828,1738078252058,-764.78,0.00019178,2]
[350715829,1738078252068,-216.922782,0.00019178,2]
[350715830,1738078252079,-500.0,0.00019178,2]
[350715831,1738078252089,-764.78,0.00019178,2]
[350715832,1738078252099,-216.922782,0.00019178,2]
[350715833,1738078252109,-764.78,0.00019178,2]
[350715834,1738078252119,-764.78,0.00019178,2]
[350715835,1738078252128,-764.78,0.00019178,2]
[350715836,1738078252138,-500.81607658,0.00019178,2]
[350715837,1738078252148,-764.78,0.00019178,2]
[350715838,1738078252157,-764.78,0.00019178,2]
[350715839,1738078252167,-764.78,0.00019178,2]
[350715840,1738078252179,-764.78,0.00019178,2]
[350715841,1738078252189,-764.78,0.00019178,2]
[350715842,1738078252199,-2107.54,0.00019178,2]
[350715843,1738078252209,-2107.54,0.00019178,2]
[350715844,1738078252219,-2107.54,0.00019178,2]
[350715845,1738078252228,-2107.54,0.00019178,2]
[350715846,1738078252238,-2107.54,0.00019178,2]
[350715847,1738078252247,-2107.54,0.00019178,2]
[350715848,1738078252258,-2107.54,0.00019178,2]
[350715849,1738078252267,-500.0,0.00019178,2]
[350715850,1738078252277,-500.0,0.00019178,2]
[350715851,1738078252286,-500.0,0.00019178,2]
[350715852,1738078252295,-500.0,0.00019178,2]
[350715853,1738078252305,-500.0,0.00019178,2]
[350715854,1738078252314,-500.0,0.00019178,2]
[350715855,1738078252323,-500.0,0.00019178,2]
[350715856,1738078252333,-500.0,0.00019178,2]
[350715857,1738078252342,-500.0,0.00019178,2]
[350715858,1738078252352,-500.0,0.00019178,2]
[350715859,1738078252365,-500.0,0.00019178,2]
[350715860,1738078252375,-500.0,0.00019178,2]
[350715861,1738078252384,-208.84,0.00019178,2]
[350715862,1738078252395,-500.0,0.00019178,2]
[350715863,1738078252404,-500.0,0.00019178,2]
[350715864,1738078252414,-500.0,0.00019178,2]
[350715865,1738078252427,-500.0,0.00019178,2]
[350715866,1738078252437,-501.82926816,0.00019178,2]
[350715867,1738078252447,-500.0,0.00019178,2]
[350715868,1738078252456,-500.0,0.00019178,2]
[350715869,1738078252468,-500.0,0.00019178,2]
[350715870,1738078252479,-330.28573894,0.00019178,2]
[350715871,1738078252489,-500.0,0.00019178,2]
[350715872,1738078252499,-500.0,0.00019178,2]
[350715873,1738078252509,-500.0,0.00019178,2]
[350715874,1738078252519,-500.0,0.00019178,2]
[350715875,1738078252529,-500.0,0.00019178,2]
[350715876,1738078252539,-500.0,0.00019178,2]
[350715877,1738078252550,-500.0,0.00019178,2]
[350715878,1738078252559,-500.0,0.00019178,2]
[350715879,1738078252569,-500.0,0.00019178,2]
[350715880,1738078252579,-500.0,0.00019178,2]
[350715881,1738078252589,-500.0,0.00019178,2]
[350715882,1738078252598,-500.0,0.00019178,2]
[350715883,1738078252607,-500.0,0.00019178,2]
[350715884,1738078252616,-500.0,0.00019178,2]
[350715885,1738078252626,-500.0,0.00019178,2]
[350715886,1738078252635,-500.0,0.00019178,2]
[350715887,1738078252644,-500.0,0.00019178,2]
[350715888,1738078252654,-500.0,0.00019178,2]
[350715889,1738078252663,-500.0,0.00019178,2]
[350715890,1738078252673,-500.0,0.00019178,2]
[350715891,1738078252684,-277.26,0.00019178,2]
[350715892,1738078252693,-500.0,0.00019178,2]
[350715893,1738078252703,-500.0,0.00019178,2]
[350715894,1738078252712,-500.0,0.00019178,2]
[350715895,1738078252722,-841.12,0.00019178,2]
[350715896,1738078252732,-357.02,0.00019178,2]
[350715897,1738078252741,-500.0,0.00019178,2]
[350715898,1738078252751,-841.12,0.00019178,2]
[350715899,1738078252761,-841.12,0.00019178,2]
[350715900,1738078252771,-841.12,0.00019178,2]
[350715901,1738078252781,-841.12,0.00019178,2]
[350715902,1738078252791,-500.0,0.00019178,2]
[350715903,1738078252801,-841.12,0.00019178,2]
[350715904,1738078252811,-500.0,0.00019178,2]
[350715905,1738078252820,-174.471271,0.00019178,2]
[350715906,1738078252830,-585.36271305,0.00019178,2]
[350715907,1738078252840,-563.32,0.00019178,2]
[350715908,1738078252850,-500.0,0.00019178,2]
[350715909,1738078252860,-1078.53,0.00019178,2]
[350715910,1738078252870,-1078.53,0.00019178,2]
[350715911,1738078252880,-1078.53,0.00019178,2]
[350715912,1738078252890,-1078.53,0.00019178,2]
[350715913,1738078252900,-500.0,0.00019178,2]
[350715914,1738078252910,-1078.53,0.00019178,2]
[350715915,1738078252920,-500.0,0.00019178,2]
[350715916,1738078252931,-1078.53,0.00019178,2]
[350715917,1738078252941,-616.23,0.00019178,2]
[350715918,1738078252951,-500.0,0.00019178,2]
[350715919,1738078252960,-1078.53,0.00019178,2]
[350715920,1738078252970,-500.0,0.00019178,2]
[350715921,1738078252979,-175.70953166,0.00019178,2]
[350715922,1738078252989,-500.0,0.00019178,2]
[350715923,1738078252999,-500.0,0.00019178,2]
[350715924,1738078253009,-500.0,0.00019178,2]
[350715925,1738078253019,-500.0,0.00019178,2]
[350715926,1738078253029,-372.7,0.00019178,2]
[350715927,1738078253039,-503.82,0.00019178,2]
[350715928,1738078253048,-503.82,0.00019178,2]
[350715929,1738078253059,-500.0,0.00019178,2]
[350715930,1738078253068,-500.0,0.00019178,2]
[350715931,1738078253078,-503.82,0.00019178,2]
[350715932,1738078253088,-503.82,0.00019178,2]
[350715933,1738078253098,-503.82,0.00019178,2]
[350715934,1738078253107,-502.96651066,0.00019178,2]
[350715935,1738078253117,-1000.0,0.00019178,2]
[350715936,1738078253126,-1000.0,0.00019178,2]
[350715937,1738078253136,-150.0,0.00019178,2]
[350715938,1738078253147,-420.0,0.00019195,2]
[350715939,1738078253157,-507.01333327,0.00019221,2]
[350715940,1738078253167,-215.0,0.0001923,2]
[350715941,1738078253179,-929.34604109,0.00019235,10]
[350715942,1738078253189,-4000.0,0.00019248,10]
[350715943,1738078253199,-8649.03341616,0.00019261,2]
[350715944,1738078253208,-151.650494,0.00019261,2]
[350715945,1738078253218,-502.96651066,0.00019288,2]
[350715946,1738078253227,-552.81893009,0.0001929,3]
[350715947,1738078253237,-150.0,0.00019292,4]
[350715948,1738078253247,-150.0,0.00019292,4]
[350715949,1738078253256,-150.0,0.00019292,4]
[350715950,1738078253265,-222.16405261,0.00019292,4]
[350715951,1738078253275,-242.49362372,0.00019292,4]
[350715952,1738078253285,-150.0,0.00019292,4]
[350715953,1738078253295,-200.81,0.00019293,2]
[350715954,1738078253305,-500.0,0.00019299,2]
[350715955,1738078253314,-500.0,0.00019299,2]
[350715956,1738078253323,-191.94,0.00019299,2]
[350715957,1738078253333,-500.0,0.00019299,2]
[350715958,1738078253343,-543.21,0.00019299,2]
[350715959,1738078253354,-535.99,0.00019299,2]
[350715960,1738078253366,-698.76,0.00019299,2]
[350715961,1738078253376,-581.72,0.00019299,2]
[350715962,1738078253385,-691.21,0.00019299,2]
[350715963,1738078253394,-729.05,0.00019299,2]
[350715964,1738078253404,-500.0,0.00019299,2]
[350715965,1738078253414,-500.0,0.00019299,2]
[350715966,1738078253423,-500.0,0.00019299,2]
[350715967,1738078253435,-500.0,0.00019299,2]
[350715968,1738078253445,-500.0,0.00019299,2]
[350715969,1738078253454,-500.0,0.00019299,2]
[350715970,1738078253464,-500.0,0.00019299,2]
[350715971,1738078253475,-612.97,0.00019299,2]
[350715972,1738078253485,-500.0,0.00019299,2]
[350715973,1738078253494,-500.0,0.00019299,2]
[350715974,1738078253505,-500.0,0.00019299,2]
[350715975,1738078253515,-500.0,0.00019299,2]
[350715976,1738078253525,-500.0,0.00019299,2]
[350715977,1738078253535,-759.44,0.00019299,2]
[350715978,1738078253545,-500.0,0.00019299,2]
[350715979,1738078253554,-1613.15,0.00019299,2]
[350715980,1738078253565,-640.99,0.00019299,2]
[350715981,1738078253574,-1530.86,0.00019299,2]
[350715982,1738078253585,-2553.16,0.00019299,2]
[350715983,1738078253595,-1824.09,0.00019299,2]
[350715984,1738078253606,-1116.2,0.00019299,2]
[350715985,1738078253615,-3711.89,0.00019299,2]
[350715986,1738078253625,-999.85,0.00019299,2]
[350715987,1738078253635,-500.0,0.00019299,2]
[350715988,1738078253646,-758.76,0.00019299,2]
[350715989,1738078253656,-500.0,0.00019299,2]
[350715990,1738078253665,-443.21115757,0.00019299,2]
[350715991,1738078253677,-24416.34050061,0.000193,2]
[350715992,1738078253686,-811.2959,0.000193,2]
[350715993,1738078253696,-1123.3188,0.000193,2]
[350715994,1738078253706,-500.0,0.00019318,2]
[350715995,1738078253716,-500.0,0.00019318,2]
[350715996,1738078253726,-521.54,0.00019318,2]
[350715997,1738078253735,-1111.16,0.00019318,2]
[350715998,1738078253745,-3149.0,0.00019318,2]
[350715999,1738078253756,-572.89,0.00019318,2]
[350716000,1738078253767,-500.0,0.00019318,2]
[350716001,1738078253777,-1260.79,0.00019318,2]
[350716002,1738078253788,-155.43,0.00019318,2]
[350716003,1738078253799,-764.78,0.00019318,2]
[350716004,1738078253809,-6639.12,0.00019319,2]
[350716005,1738078253989,-3784.18,0.00019319,2]
[350716006,1738078254000,-6959.63,0.00019319,2]
[350716007,1738078254010,-5602.62,0.00019319,2]
[350716008,1738078254020,-500.0,0.00019319,2]
[350716009,1738078254030,-3001.66,0.00019319,2]
[350716010,1738078254040,-1496.07,0.00019319,2]
[350716011,1738078254049,-686.45,0.00019319,2]
[350716012,1738078254059,-2743.13,0.00019319,2]
[350716013,1738078254069,-500.0,0.00019319,2]
[350716014,1738078254079,-947.18,0.00019319,2]
[350716015,1738078254088,-500.0,0.00019319,2]
[350716016,1738078254098,-841.12,0.00019319,2]
[350716017,1738078254107,-151.0,0.0001932,2]
[350716018,1738078254116,-398.8,0.00019348,2]
[350716019,1738078254126,-150.0,0.00019349,2]
[350716020,1738078254135,-8649.03341616,0.00019352,2]
[350716021,1738078254145,-502.96651066,0.0001937,2]
[350716022,1738078254155,-7318.3587214,0.00019387,2]
[350716023,1738078254164,-485.648796,0.00019387,2]
[350716024,1738078254176,-1938.2960669,0.00019388,2]
[350716025,1738078254187,-1545.558951,0.00019388,2]
[350716026,1738078254196,-1772.0,0.00019391,2]
[350716027,1738078254206,-20330.83135668,0.000194,4]
[350716028,1738078254216,-23321.81011885,0.00019401,2]
[350716029,1738078254228,-381.23,0.0001942,2]
[350716030,1738078254238,-8649.03341616,0.00019443,2]
[350716031,1738078254248,-502.96651066,0.00019452,2]
[350716032,1738078254258,-200.0,0.00019472,2]
[350716033,1738078254268,-3533.9,0.00019498,2]
[350716034,1738078254278,-1141.0,0.00019498,2]
[350716035,1738078254288,-1255.27,0.00019498,2]
[350716036,1738078254298,-966.62,0.00019498,2]
[350716037,1738078254307,-500.0,0.00019498,2]
[350716038,1738078254317,-899.34,0.00019498,2]
[350716039,1738078254327,-658.62,0.00019498,2]
[350716040,1738078254337,-860.35,0.00019498,2]
[350716041,1738078254346,-1156.89,0.00019498,2]
[350716042,1738078254358,-500.0,0.00019498,2]
[350716043,1738078254368,-2107.54,0.00019498,2]
[350716044,1738078254377,-1078.53,0.00019498,2]
[350716045,1738078254387,-900.0,0.00019499,2]
[350716046,1738078254396,-900.0,0.00019499,2]
[350716047,1738078254406,-900.0,0.00019499,2]
[350716048,1738078254415,-900.0,0.00019499,2]
[350716049,1738078254426,-900.0,0.00019499,2]
[350716050,1738078254435,-824.68308167,0.00019499,2]
[350716051,1738078254446,-496.9564444,0.00019499,2]
[350716052,1738078254455,-159.23294858,0.000195,2]
[350716053,1738078254465,-8649.03341616,0.00019535,2]
[350716054,1738078254474,-215.0,0.0001955,2]
[350716055,1738078254483,-211.0,0.0001955,2]
[350716056,1738078254492,-205.0,0.0001955,2]
[350716057,1738078254502,-2930.14,0.00019566,7]
[350716058,1738078254511,-2930.14,0.00019566,7]
[350716059,1738078254521,-2930.14,0.00019566,7]
[350716060,1738078254530,-2930.14,0.00019566,7]
[350716061,1738078254539,-1772.0,0.00019591,2]
[350716062,1738078254549,-161.80746257,0.00019598,2]
[350716063,1738078254558,-3286.87699833,0.0001961,2]
[350716064,1738078254568,-1000.0,0.0001962,2]
[350716065,1738078254578,-8649.03341616,0.00019626,2]
[350716066,1738078254588,-150.0,0.00019683,2]
[350716067,1738078254598,-2100.0,0.000197,7]
[350716068,1738078254607,-8649.03341616,0.00019717,2]
[350716069,1738078254618,-591.54499239,0.00019721,2]
[350716070,1738078254628,-282.59,0.00019738,2]
[350716071,1738078254637,-1772.0,0.00019791,2]
[350716072,1738078254646,-1854.97367944,0.00019799,2]
[350716073,1738078254655,-1459.13,0.00019799,2]
[350716074,1738078254665,-3419.43071425,0.000198,2]
[350716075,1738078254677,-400.0,0.000198,7]
[350716076,1738078254687,-1014.17283998,0.000198,2]
[350716077,1738078254697,-1613.15,0.00019808,2]
[350716078,1738078254707,-640.99,0.00019808,2]
[350716079,1738078254717,-1530.86,0.00019808,2]
[350716080,1738078254728,-2553.16,0.00019808,2]
[350716081,1738078254738,-1824.09,0.00019808,2]
[350716082,1738078254748,-1116.2,0.00019808,2]
[350716083,1738078254759,-3711.89,0.00019808,2]
[350716084,1738078254769,-999.85,0.00019808,2]
[350716085,1738078254780,-758.76,0.00019808,2]
[350716086,1738078254790,-500.0,0.00019808,2]
[350716087,1738078254799,-8649.03341616,0.00019809,2]
[350716088,1738078254809,-2930.14,0.0001984,7]
[350716089,1738078254820,-2930.14,0.0001984,7]
[350716090,1738078254830,-215.0,0.0001987,2]
[350716091,1738078254839,-211.0,0.0001987,2]
[350716092,1738078254849,-205.0,0.0001987,2]
[350716093,1738078254859,-152.0,0.00019872,3]
[350716094,1738078254870,-4000.0,0.00019874,15]
[350716095,1738078254879,-53642.83565534,0.0001988,2]
[350716096,1738078254889,-190.00758917,0.00019899,3]
[350716097,1738078254899,-2939.83917192,0.00019899,2]
[350716098,1738078254908,-1234.43641356,0.00019899,2]
[350716099,1738078254918,-10599.09691612,0.000199,5]
[350716100,1738078254929,-4691.89551948,0.000199,3]
[350716101,1738078254939,-180.30007647,0.000199,2]
[350716102,1738078254949,-400.0,0.000199,7]
[350716103,1738078254959,-30510.32577604,0.000199,7]
[350716104,1738078254969,-714.04,0.000199,31]
[350716105,1738078254979,-714.04,0.000199,31]
[350716106,1738078254988,-714.04,0.000199,31]
[350716107,1738078254998,-714.04,0.000199,31]
[350716108,1738078255008,-714.04,0.000199,31]
[350716109,1738078255018,-714.04,0.000199,31]
[350716110,1738078255027,-714.04,0.000199,31]
[350716111,1738078255037,-714.04,0.000199,31]
[350716112,1738078255047,-714.04,0.000199,31]
[350716113,1738078255056,-714.04,0.000199,31]
[350716114,1738078255066,-714.04,0.000199,31]
[350716115,1738078255075,-714.04,0.000199,31]
[350716116,1738078255085,-714.04,0.000199,31]
[350716117,1738078255094,-714.04,0.000199,31]
[350716118,1738078255103,-714.04,0.000199,31]
[350716119,1738078255113,-714.04,0.000199,31]
[350716120,1738078255123,-216.922782,0.000199,2]
[350716121,1738078255132,-216.922782,0.000199,2]
[350716122,1738078255142,-8649.03341616,0.000199,2]
[350716123,1738078255151,-150.0,0.00019942,2]
[350716124,1738078255161,-150.0,0.00019943,2]
[350716125,1738078255170,-400.0,0.0001997,2]
[350716126,1738078255182,-250.0,0.0001997,2]
[350716127,1738078255192,-500.0,0.00019973,2]
[350716128,1738078255202,-500.0,0.00019973,2]
[350716129,1738078255212,-500.0,0.00019973,2]
[350716130,1738078255223,-500.0,0.00019973,2]
[350716131,1738078255233,-315.78272786,0.00019973,2]
[350716132,1738078255243,-152.51642694,0.00019973,2]
[350716133,1738078255253,-160.20679502,0.00019973,2]
[350716134,1738078255263,-301.72097616,0.00019973,2]
[350716135,1738078255272,-500.0,0.00019987,2]
[350716136,1738078255282,-500.0,0.00019987,2]
[350716137,1738078255291,-521.54,0.00019987,2]
[350716138,1738078255300,-1111.16,0.00019987,2]
[350716139,1738078255309,-3149.0,0.00019987,2]
[350716140,1738078255319,-572.89,0.00019987,2]
[350716141,1738078255329,-500.0,0.00019987,2]
[350716142,1738078255339,-1260.79,0.00019987,2]
[350716143,1738078255348,-764.78,0.00019987,2]
[350716144,1738078255359,-594.14,0.00019988,2]
[350716145,1738078255371,-500.0,0.00019988,2]
[350716146,1738078255380,-575.8080841,0.00019988,2]
[350716147,1738078255390,-158.295766,0.00019988,2]
[350716148,1738078255400,-500.0,0.00019988,2]
[350716149,1738078255410,-500.0,0.00019988,2]
[350716150,1738078255420,-6639.12,0.00019988,2]
[350716151,1738078255431,-440.51,0.00019988,2]
[350716152,1738078255440,-3784.18,0.00019988,2]
[350716153,1738078255451,-612.97,0.00019988,2]
[350716154,1738078255460,-500.0,0.00019988,2]
[350716155,1738078255470,-6959.63,0.00019988,2]
[350716156,1738078255479,-500.0,0.00019988,2]
[350716157,1738078255488,-500.0,0.00019988,2]
[350716158,1738078255497,-5602.62,0.00019988,2]
[350716159,1738078255506,-500.0,0.00019988,2]
[350716160,1738078255515,-500.0,0.00019988,2]
[350716161,1738078255525,-500.0,0.00019988,2]
[350716162,1738078255535,-759.44,0.00019988,2]
[350716163,1738078255544,-3001.66,0.00019988,2]
[350716164,1738078255553,-1496.07,0.00019988,2]